[Event "Titled Tuesday Blitz June 20 Early 2023"]
[White "Zaichenko, Daria"]
[Black "MaryanKyrychenko"]
[WhiteFideId "4197453"]
[WhiteElo "2039"]
[BlackElo "2520"]
[Result "0-1"]
[Round "3"]
[TimeControl "180+2"]
[Date "2023.06.20"]
[WhiteClock "0:00:42"]
[BlackClock "0:01:17"]
[Board "162"]

1. e4 {[%clk 0:02:55]}  c5 {[%clk 0:02:58]} 2. Nf3 {[%clk 0:02:55]}  d6 {[%clk 0:02:59]} 3. d4 {[%clk 0:02:55]}  cxd4 {[%clk 0:03:00]} 4. Nxd4 {[%clk 0:02:55]}  Nf6 {[%clk 0:03:00]} 5. Nc3 {[%clk 0:02:55]}  g6 {[%clk 0:03:01]} 6. g3 {[%clk 0:02:43]}  Bg7 {[%clk 0:03:01]} 7. Bg2 {[%clk 0:02:43]}  O-O {[%clk 0:03:01]} 8. O-O {[%clk 0:02:42]}  Nc6 {[%clk 0:03:01]} 9. Nb3 {[%clk 0:02:41]}  Be6 {[%clk 0:03:00]} 10. f4 {[%clk 0:02:37]}  Rc8 {[%clk 0:03:00]} 11. Be3 {[%clk 0:02:36]}  Ng4 {[%clk 0:02:55]} 12. Bd2 {[%clk 0:02:32]}  Qb6+ {[%clk 0:02:54]} 13. Kh1 {[%clk 0:02:30]}  Nf2+ {[%clk 0:02:46]} 14. Rxf2 {[%clk 0:02:30]}  Qxf2 {[%clk 0:02:47]} 15. Be1 {[%clk 0:02:21]}  Qb6 {[%clk 0:02:42]} 16. Qf3 {[%clk 0:02:20]}  Bxb3 {[%clk 0:02:40]} 17. axb3 {[%clk 0:02:18]}  Nd4 {[%clk 0:02:40]} 18. Qd3 {[%clk 0:02:18]}  Ne6 {[%clk 0:02:18]} 19. Nd5 {[%clk 0:02:13]}  Qd8 {[%clk 0:02:18]} 20. Rxa7 {[%clk 0:02:10]}  Nc5 {[%clk 0:02:18]} 21. Qb5 {[%clk 0:02:03]}  e6 {[%clk 0:02:03]} 22. Nb6 {[%clk 0:01:58]}  Rc6 {[%clk 0:02:03]} 23. Ba5 {[%clk 0:01:55]}  Qb8 {[%clk 0:01:53]} 24. Ra8 {[%clk 0:01:30]}  Rxb6 {[%clk 0:01:49]} 25. Rxb8 {[%clk 0:01:29]}  Rxb5 {[%clk 0:01:48]} 26. Rxf8+ {[%clk 0:01:30]}  Kxf8 {[%clk 0:01:48]} 27. Bc7 {[%clk 0:01:28]}  Ke7 {[%clk 0:01:47]} 28. Bf1 {[%clk 0:01:26]}  Rb4 {[%clk 0:01:41]} 29. Bc4 {[%clk 0:01:20]}  b5 {[%clk 0:01:40]} 30. Ba5 {[%clk 0:01:14]}  Rxc4 {[%clk 0:01:38]} 31. bxc4 {[%clk 0:01:14]}  bxc4 {[%clk 0:01:39]} 32. Kg2 {[%clk 0:01:09]}  Nxe4 {[%clk 0:01:37]} 33. b4 {[%clk 0:01:08]}  cxb3 {[%clk 0:01:34]} 34. cxb3 {[%clk 0:01:08]}  d5 {[%clk 0:01:35]} 35. Kf3 {[%clk 0:01:07]}  Kd6 {[%clk 0:01:34]} 36. Bb4+ {[%clk 0:01:06]}  Kc6 {[%clk 0:01:35]} 37. Be7 {[%clk 0:01:04]}  h5 {[%clk 0:01:34]} 38. h3 {[%clk 0:01:04]}  Kb5 {[%clk 0:01:35]} 39. g4 {[%clk 0:01:04]}  hxg4+ {[%clk 0:01:35]} 40. hxg4 {[%clk 0:01:04]}  Nc5 {[%clk 0:01:35]} 41. f5 {[%clk 0:00:49]}  gxf5 {[%clk 0:01:31]} 42. gxf5 {[%clk 0:00:49]}  Nxb3 {[%clk 0:01:18]} 43. fxe6 {[%clk 0:00:48]}  fxe6 {[%clk 0:01:18]} 44. Kf4 {[%clk 0:00:42]}  Kc4 {[%clk 0:01:17]} 0-1


[Site "https://www.chess.com"]

[Event "Titled Tuesday Blitz June 20 Early 2023"]
[White "Torres Dominguez, David"]
[Black "Brunner, Nicolas"]
[WhiteFideId "2220857"]
[BlackFideId "620246"]
[WhiteElo "1999"]
[BlackElo "2319"]
[Result "0-1"]
[Round "3"]
[TimeControl "180+2"]
[Date "2023.06.20"]
[WhiteClock "0:00:12"]
[BlackClock "0:01:38"]
[Board "169"]

1. e4 {[%clk 0:03:00]}  e5 {[%clk 0:02:59]} 2. Bc4 {[%clk 0:02:58]}  Nf6 {[%clk 0:02:59]} 3. Nc3 {[%clk 0:02:57]}  Nxe4 {[%clk 0:02:58]} 4. Qh5 {[%clk 0:02:58]}  Nd6 {[%clk 0:02:51]} 5. Qxe5+ {[%clk 0:02:58]}  Qe7 {[%clk 0:02:49]} 6. Qxe7+ {[%clk 0:02:58]}  Bxe7 {[%clk 0:02:48]} 7. Be2 {[%clk 0:02:58]}  O-O {[%clk 0:02:48]} 8. Nd5 {[%clk 0:02:54]}  Bd8 {[%clk 0:02:47]} 9. Nf3 {[%clk 0:02:51]}  c6 {[%clk 0:02:47]} 10. Ne3 {[%clk 0:02:50]}  Ne8 {[%clk 0:02:44]} 11. d4 {[%clk 0:02:49]}  d5 {[%clk 0:02:44]} 12. Bd2 {[%clk 0:02:47]}  Nd6 {[%clk 0:02:43]} 13. O-O-O {[%clk 0:02:36]}  Nd7 {[%clk 0:02:42]} 14. Bd3 {[%clk 0:02:24]}  Nf6 {[%clk 0:02:40]} 15. Ne5 {[%clk 0:02:20]}  Nfe4 {[%clk 0:02:36]} 16. Be1 {[%clk 0:02:18]}  f6 {[%clk 0:02:36]} 17. f3 {[%clk 0:01:51]}  fxe5 {[%clk 0:02:34]} 18. dxe5 {[%clk 0:01:48]}  Bg5 {[%clk 0:02:27]} 19. fxe4 {[%clk 0:01:30]}  Bxe3+ {[%clk 0:02:27]} 20. Kb1 {[%clk 0:01:27]}  Nxe4 {[%clk 0:02:26]} 21. Bb4 {[%clk 0:01:02]}  Bc5 {[%clk 0:02:25]} 22. Ba5 {[%clk 0:01:00]}  Bf5 {[%clk 0:02:22]} 23. Rhf1 {[%clk 0:00:56]}  Rae8 {[%clk 0:02:18]} 24. h3 {[%clk 0:00:53]}  h5 {[%clk 0:02:14]} 25. c4 {[%clk 0:00:49]}  Rxe5 {[%clk 0:02:09]} 26. cxd5 {[%clk 0:00:47]}  cxd5 {[%clk 0:02:09]} 27. Bc2 {[%clk 0:00:32]}  Ng3 {[%clk 0:01:57]} 28. Rf3 {[%clk 0:00:28]}  Bxc2+ {[%clk 0:01:56]} 29. Kxc2 {[%clk 0:00:26]}  Rxf3 {[%clk 0:01:56]} 30. gxf3 {[%clk 0:00:27]}  h4 {[%clk 0:01:50]} 31. Bc7 {[%clk 0:00:25]}  Rf5 {[%clk 0:01:47]} 32. f4 {[%clk 0:00:24]}  Kf7 {[%clk 0:01:46]} 33. Be5 {[%clk 0:00:24]}  g5 {[%clk 0:01:44]} 34. Rxd5 {[%clk 0:00:23]}  b6 {[%clk 0:01:39]} 35. Rd7+ {[%clk 0:00:23]}  Ke6 {[%clk 0:01:39]} 36. Rxa7 {[%clk 0:00:22]}  gxf4 {[%clk 0:01:39]} 37. Bc3 {[%clk 0:00:12]}  f3 {[%clk 0:01:38]} 0-1


[Site "https://www.chess.com"]

[Event "Titled Tuesday Blitz June 20 Early 2023"]
[White "Kollars, Dmitrij"]
[Black "Sanchez, Robert"]
[WhiteFideId "12909572"]
[BlackFideId "2034360"]
[WhiteElo "2584"]
[BlackElo "2002"]
[Result "1-0"]
[Round "3"]
[TimeControl "180+2"]
[Date "2023.06.20"]
[WhiteClock "0:01:58"]
[BlackClock "0:01:26"]
[Board "172"]

1. b4 {[%clk 0:03:00]}  e6 {[%clk 0:02:59]} 2. Bb2 {[%clk 0:03:00]}  d5 {[%clk 0:03:00]} 3. Nf3 {[%clk 0:03:00]}  Nf6 {[%clk 0:03:00]} 4. a3 {[%clk 0:02:59]}  Bd6 {[%clk 0:03:00]} 5. e3 {[%clk 0:02:59]}  O-O {[%clk 0:03:00]} 6. c4 {[%clk 0:02:59]}  c6 {[%clk 0:03:00]} 7. Nc3 {[%clk 0:03:00]}  Nbd7 {[%clk 0:03:00]} 8. d4 {[%clk 0:03:00]}  Re8 {[%clk 0:03:00]} 9. Be2 {[%clk 0:02:58]}  e5 {[%clk 0:02:58]} 10. cxd5 {[%clk 0:02:57]}  cxd5 {[%clk 0:02:57]} 11. Nb5 {[%clk 0:02:55]}  Bb8 {[%clk 0:02:57]} 12. dxe5 {[%clk 0:02:55]}  Nxe5 {[%clk 0:02:53]} 13. Nxe5 {[%clk 0:02:53]}  Bxe5 {[%clk 0:02:54]} 14. Bxe5 {[%clk 0:02:53]}  Rxe5 {[%clk 0:02:55]} 15. O-O {[%clk 0:02:52]}  h5 {[%clk 0:02:47]} 16. Rc1 {[%clk 0:02:50]}  h4 {[%clk 0:02:43]} 17. Bf3 {[%clk 0:02:47]}  Be6 {[%clk 0:02:39]} 18. Qd4 {[%clk 0:02:46]}  Rg5 {[%clk 0:02:38]} 19. Qxh4 {[%clk 0:02:45]}  Rg6 {[%clk 0:02:38]} 20. Nc7 {[%clk 0:02:39]}  Rb8 {[%clk 0:02:36]} 21. Nxe6 {[%clk 0:02:35]}  fxe6 {[%clk 0:02:37]} 22. Qf4 {[%clk 0:02:25]}  a6 {[%clk 0:02:27]} 23. h4 {[%clk 0:02:25]}  Rc8 {[%clk 0:02:22]} 24. h5 {[%clk 0:02:21]}  Rh6 {[%clk 0:02:21]} 25. g4 {[%clk 0:02:21]}  Ne4 {[%clk 0:02:17]} 26. Rxc8 {[%clk 0:02:19]}  Qxc8 {[%clk 0:02:16]} 27. g5 {[%clk 0:02:19]}  Rh7 {[%clk 0:02:11]} 28. Kg2 {[%clk 0:02:13]}  Qd8 {[%clk 0:01:58]} 29. g6 {[%clk 0:02:03]}  Rh6 {[%clk 0:01:56]} 30. Bxe4 {[%clk 0:02:03]}  Rxh5 {[%clk 0:01:41]} 31. Bf3 {[%clk 0:02:02]}  Rg5+ {[%clk 0:01:41]} 32. Bg4 {[%clk 0:02:02]}  Rxg6 {[%clk 0:01:31]} 33. f3 {[%clk 0:02:01]}  Qe7 {[%clk 0:01:26]} 34. Rc1 {[%clk 0:01:59]}  e5 {[%clk 0:01:26]} 35. Rc8+ {[%clk 0:01:57]}  Kh7 {[%clk 0:01:26]} 36. Qh2+ {[%clk 0:01:57]}  Rh6 {[%clk 0:01:27]} 37. Bf5+ {[%clk 0:01:58]}  g6 {[%clk 0:01:26]} 38. Rh8+ {[%clk 0:01:58]}  Kxh8 {[%clk 0:01:25]} 39. Qxh6+ {[%clk 0:01:58]}  Kg8 {[%clk 0:01:26]} 1-0


[Site "https://www.chess.com"]

[Event "Titled Tuesday Blitz June 20 Early 2023"]
[White "Drozdowski, Kacper"]
[Black "Carrasco Miranda, Andres"]
[WhiteFideId "1136720"]
[BlackFideId "3405990"]
[WhiteElo "2497"]
[BlackElo "2183"]
[Result "1-0"]
[Round "3"]
[TimeControl "180+2"]
[Date "2023.06.20"]
[WhiteClock "0:00:43"]
[BlackClock "0:00:00"]
[Board "173"]

1. e4 {[%clk 0:03:00]}  e5 {[%clk 0:02:56]} 2. Nf3 {[%clk 0:03:01]}  Nc6 {[%clk 0:02:56]} 3. Bc4 {[%clk 0:03:01]}  Bc5 {[%clk 0:02:55]} 4. c3 {[%clk 0:03:01]}  Nf6 {[%clk 0:02:55]} 5. d3 {[%clk 0:03:02]}  d6 {[%clk 0:02:54]} 6. Bb3 {[%clk 0:03:03]}  a5 {[%clk 0:02:54]} 7. Nbd2 {[%clk 0:03:03]}  a4 {[%clk 0:02:53]} 8. Bxa4 {[%clk 0:03:02]}  O-O {[%clk 0:02:52]} 9. h3 {[%clk 0:03:01]}  Ne7 {[%clk 0:02:50]} 10. Bc2 {[%clk 0:02:59]}  Ng6 {[%clk 0:02:50]} 11. Nf1 {[%clk 0:02:58]}  Be6 {[%clk 0:02:49]} 12. a3 {[%clk 0:02:55]}  c6 {[%clk 0:02:48]} 13. Ng3 {[%clk 0:02:55]}  d5 {[%clk 0:02:48]} 14. O-O {[%clk 0:02:50]}  Qd7 {[%clk 0:02:46]} 15. d4 {[%clk 0:02:41]}  exd4 {[%clk 0:02:14]} 16. Nxd4 {[%clk 0:02:41]}  Qc7 {[%clk 0:01:42]} 17. exd5 {[%clk 0:02:35]}  Nxd5 {[%clk 0:01:40]} 18. Ne4 {[%clk 0:02:33]}  Bb6 {[%clk 0:01:35]} 19. Nxe6 {[%clk 0:02:18]}  fxe6 {[%clk 0:01:36]} 20. Qg4 {[%clk 0:02:15]}  Rae8 {[%clk 0:01:29]} 21. Bg5 {[%clk 0:02:04]}  Ne5 {[%clk 0:01:10]} 22. Qg3 {[%clk 0:01:59]}  Kh8 {[%clk 0:00:57]} 23. Rae1 {[%clk 0:01:56]}  Rf5 {[%clk 0:00:46]} 24. Bc1 {[%clk 0:01:33]}  Ref8 {[%clk 0:00:43]} 25. Kh1 {[%clk 0:01:32]}  Nf4 {[%clk 0:00:36]} 26. Ng5 {[%clk 0:01:10]}  Neg6 {[%clk 0:00:19]} 27. Bxf5 {[%clk 0:01:06]}  Rxf5 {[%clk 0:00:08]} 28. Bxf4 {[%clk 0:00:57]}  Nxf4 {[%clk 0:00:09]} 29. Nxe6 {[%clk 0:00:47]}  Nxe6 {[%clk 0:00:09]} 30. Rxe6 {[%clk 0:00:46]}  Qf7 {[%clk 0:00:00]} 31. Qb8+ {[%clk 0:00:43]} 1-0


[Site "https://www.chess.com"]

[Event "Titled Tuesday Blitz June 20 Early 2023"]
[White "Szente Varga, Fruzsina"]
[Black "Csonka, Balazs"]
[WhiteFideId "712264"]
[BlackFideId "742910"]
[WhiteElo "1994"]
[BlackElo "2404"]
[Result "1-0"]
[Round "3"]
[TimeControl "180+2"]
[Date "2023.06.20"]
[WhiteClock "0:00:14"]
[BlackClock "0:00:00"]
[Board "175"]

1. e4 {[%clk 0:02:47]}  d6 {[%clk 0:02:57]} 2. d4 {[%clk 0:02:46]}  Nf6 {[%clk 0:02:56]} 3. Nc3 {[%clk 0:02:43]}  g6 {[%clk 0:02:55]} 4. f3 {[%clk 0:02:43]}  Bg7 {[%clk 0:02:53]} 5. Be3 {[%clk 0:02:44]}  a6 {[%clk 0:02:50]} 6. Qd2 {[%clk 0:02:44]}  h5 {[%clk 0:02:49]} 7. O-O-O {[%clk 0:02:42]}  b5 {[%clk 0:02:48]} 8. h4 {[%clk 0:02:41]}  Bb7 {[%clk 0:02:45]} 9. Nh3 {[%clk 0:02:38]}  Nbd7 {[%clk 0:02:38]} 10. Kb1 {[%clk 0:02:31]}  e5 {[%clk 0:02:26]} 11. d5 {[%clk 0:02:23]}  Nc5 {[%clk 0:02:16]} 12. Qf2 {[%clk 0:02:00]}  Nfd7 {[%clk 0:02:15]} 13. Ng5 {[%clk 0:01:55]}  b4 {[%clk 0:02:12]} 14. Ne2 {[%clk 0:01:52]}  a5 {[%clk 0:02:12]} 15. Nc1 {[%clk 0:01:52]}  a4 {[%clk 0:02:00]} 16. Bb5 {[%clk 0:01:49]}  Kf8 {[%clk 0:01:43]} 17. g4 {[%clk 0:01:41]}  b3 {[%clk 0:01:33]} 18. cxb3 {[%clk 0:01:35]}  axb3 {[%clk 0:01:34]} 19. a3 {[%clk 0:01:36]}  Ra5 {[%clk 0:01:29]} 20. Bxd7 {[%clk 0:01:26]}  Qxd7 {[%clk 0:01:26]} 21. Bxc5 {[%clk 0:01:26]}  Rxc5 {[%clk 0:01:27]} 22. Nxb3 {[%clk 0:01:23]}  Rb5 {[%clk 0:01:26]} 23. Ka2 {[%clk 0:01:21]}  Ke7 {[%clk 0:01:18]} 24. gxh5 {[%clk 0:01:13]}  Rb8 {[%clk 0:01:18]} 25. Rd3 {[%clk 0:01:09]}  Ba6 {[%clk 0:00:56]} 26. Rc1 {[%clk 0:00:56]}  R5b7 {[%clk 0:00:29]} 27. Rdc3 {[%clk 0:00:55]}  gxh5 {[%clk 0:00:20]} 28. R1c2 {[%clk 0:00:47]}  Qa4 {[%clk 0:00:16]} 29. Rxc7+ {[%clk 0:00:41]}  Rxc7 {[%clk 0:00:12]} 30. Rxc7+ {[%clk 0:00:41]}  Kf8 {[%clk 0:00:13]} 31. Qc2 {[%clk 0:00:39]}  Kg8 {[%clk 0:00:11]} 32. Nxf7 {[%clk 0:00:32]}  Be2 {[%clk 0:00:03]} 33. Nxd6 {[%clk 0:00:31]}  Bxf3 {[%clk 0:00:03]} 34. Rxg7+ {[%clk 0:00:27]}  Kxg7 {[%clk 0:00:02]} 35. Qc7+ {[%clk 0:00:27]}  Kh6 {[%clk 0:00:02]} 36. Qxb8 {[%clk 0:00:28]}  Bxe4 {[%clk 0:00:02]} 37. Qh8+ {[%clk 0:00:26]}  Kg6 {[%clk 0:00:02]} 38. Qxe5 {[%clk 0:00:23]}  Bb1+ {[%clk 0:00:01]} 39. Kxb1 {[%clk 0:00:23]}  Qxb3 {[%clk 0:00:02]} 40. Qe4+ {[%clk 0:00:21]}  Kg7 {[%clk 0:00:02]} 41. Nf5+ {[%clk 0:00:19]}  Kf7 {[%clk 0:00:02]} 42. Nd4 {[%clk 0:00:18]}  Qd1+ {[%clk 0:00:01]} 43. Ka2 {[%clk 0:00:18]}  Qa4 {[%clk 0:00:01]} 44. Nc6 {[%clk 0:00:17]}  Qa6 {[%clk 0:00:01]} 45. Qf5+ {[%clk 0:00:17]}  Kg8 {[%clk 0:00:01]} 46. Qe6+ {[%clk 0:00:17]}  Kh8 {[%clk 0:00:02]} 47. Ne5 {[%clk 0:00:14]}  Qe2 {[%clk 0:00:00]} 48. Ng6+ {[%clk 0:00:14]} 1-0


[Site "https://www.chess.com"]

[Event "Titled Tuesday Blitz June 20 Early 2023"]
[White "Guha, Eshan"]
[Black "Starozhilov, Leonid"]
[WhiteFideId "30958628"]
[BlackFideId "14106752"]
[WhiteElo "2379"]
[BlackElo "2352"]
[Result "0-1"]
[Round "3"]
[TimeControl "180+2"]
[Date "2023.06.20"]
[WhiteClock "0:00:00"]
[BlackClock "0:01:03"]
[Board "176"]

1. d4 {[%clk 0:03:00]}  Nf6 {[%clk 0:03:00]} 2. c4 {[%clk 0:03:00]}  g6 {[%clk 0:03:00]} 3. g3 {[%clk 0:03:01]}  Bg7 {[%clk 0:03:00]} 4. Bg2 {[%clk 0:03:01]}  O-O {[%clk 0:03:01]} 5. Nc3 {[%clk 0:03:02]}  d6 {[%clk 0:03:02]} 6. Nf3 {[%clk 0:03:02]}  c6 {[%clk 0:03:02]} 7. O-O {[%clk 0:03:02]}  Bf5 {[%clk 0:03:03]} 8. Ng5 {[%clk 0:03:01]}  h6 {[%clk 0:03:02]} 9. e4 {[%clk 0:03:00]}  Bg4 {[%clk 0:03:03]} 10. f3 {[%clk 0:02:59]}  hxg5 {[%clk 0:03:03]} 11. fxg4 {[%clk 0:02:59]}  Nh7 {[%clk 0:03:04]} 12. Be3 {[%clk 0:02:52]}  Nd7 {[%clk 0:03:05]} 13. Qd2 {[%clk 0:02:50]}  c5 {[%clk 0:03:04]} 14. dxc5 {[%clk 0:02:37]}  Nxc5 {[%clk 0:03:03]} 15. Rac1 {[%clk 0:02:16]}  Rc8 {[%clk 0:03:01]} 16. b3 {[%clk 0:02:01]}  a6 {[%clk 0:02:58]} 17. Kh1 {[%clk 0:01:37]}  e6 {[%clk 0:02:44]} 18. Rfd1 {[%clk 0:01:34]}  Be5 {[%clk 0:02:44]} 19. Bd4 {[%clk 0:01:27]}  Qa5 {[%clk 0:02:16]} 20. Rb1 {[%clk 0:00:56]}  Qc7 {[%clk 0:02:07]} 21. Qe3 {[%clk 0:00:42]}  Rfd8 {[%clk 0:02:00]} 22. h4 {[%clk 0:00:34]}  Nd7 {[%clk 0:01:56]} 23. Ne2 {[%clk 0:00:26]}  Bxd4 {[%clk 0:01:55]} 24. Nxd4 {[%clk 0:00:27]}  Ne5 {[%clk 0:01:55]} 25. Bf3 {[%clk 0:00:23]}  Qe7 {[%clk 0:01:52]} 26. h5 {[%clk 0:00:21]}  Kg7 {[%clk 0:01:49]} 27. Kg2 {[%clk 0:00:21]}  Nf6 {[%clk 0:01:44]} 28. Qxg5 {[%clk 0:00:19]}  Ng8 {[%clk 0:01:28]} 29. Qe3 {[%clk 0:00:14]}  g5 {[%clk 0:01:26]} 30. Be2 {[%clk 0:00:12]}  Nh6 {[%clk 0:01:23]} 31. Rf1 {[%clk 0:00:10]}  Rc5 {[%clk 0:01:17]} 32. b4 {[%clk 0:00:07]}  Rc7 {[%clk 0:01:12]} 33. Rbc1 {[%clk 0:00:07]}  Rdc8 {[%clk 0:01:12]} 34. c5 {[%clk 0:00:05]}  dxc5 {[%clk 0:01:07]} 35. Nf3 {[%clk 0:00:04]}  Nhxg4 {[%clk 0:01:03]} 36. Qxg5+ {[%clk 0:00:03]}  Qxg5 {[%clk 0:01:03]} 37. Nxg5 {[%clk 0:00:04]}  Ne3+ {[%clk 0:01:03]} 38. Kg1 {[%clk 0:00:04]}  Nxf1 {[%clk 0:01:04]} 39. Rxf1 {[%clk 0:00:04]}  cxb4 {[%clk 0:01:03]} 40. Nh3 {[%clk 0:00:00]}  Rc1 {[%clk 0:01:03]} 0-1


[Site "https://www.chess.com"]

[Event "Titled Tuesday Blitz June 20 Early 2023"]
[White "Jaracz, Pawel"]
[Black "Daianu, Cristian-Clement"]
[WhiteFideId "1102222"]
[BlackFideId "1208926"]
[WhiteElo "2454"]
[BlackElo "2097"]
[Result "1-0"]
[Round "3"]
[TimeControl "180+2"]
[Date "2023.06.20"]
[WhiteClock "0:00:35"]
[BlackClock "0:00:24"]
[Board "178"]

1. d4 {[%clk 0:03:00]}  d5 {[%clk 0:02:59]} 2. c4 {[%clk 0:03:01]}  e6 {[%clk 0:02:59]} 3. Nf3 {[%clk 0:03:00]}  c6 {[%clk 0:02:57]} 4. e3 {[%clk 0:02:59]}  Bd6 {[%clk 0:02:56]} 5. Bd3 {[%clk 0:02:52]}  f5 {[%clk 0:02:56]} 6. O-O {[%clk 0:02:50]}  Nf6 {[%clk 0:02:57]} 7. b3 {[%clk 0:02:51]}  O-O {[%clk 0:02:57]} 8. Ba3 {[%clk 0:02:50]}  Bxa3 {[%clk 0:02:56]} 9. Nxa3 {[%clk 0:02:51]}  Nbd7 {[%clk 0:02:55]} 10. b4 {[%clk 0:02:43]}  Qe7 {[%clk 0:02:55]} 11. Qb3 {[%clk 0:02:42]}  Ne4 {[%clk 0:02:55]} 12. Rac1 {[%clk 0:02:32]}  Kh8 {[%clk 0:02:54]} 13. Rfd1 {[%clk 0:02:19]}  g5 {[%clk 0:02:54]} 14. Ne5 {[%clk 0:02:19]}  Nxe5 {[%clk 0:02:54]} 15. dxe5 {[%clk 0:02:19]}  Bd7 {[%clk 0:02:53]} 16. Nc2 {[%clk 0:02:17]}  Be8 {[%clk 0:02:53]} 17. f3 {[%clk 0:02:16]}  Qg7 {[%clk 0:02:32]} 18. fxe4 {[%clk 0:02:15]}  fxe4 {[%clk 0:02:33]} 19. Be2 {[%clk 0:02:13]}  Qxe5 {[%clk 0:02:34]} 20. Rf1 {[%clk 0:02:11]}  Bg6 {[%clk 0:02:24]} 21. Nd4 {[%clk 0:02:09]}  Kg8 {[%clk 0:02:19]} 22. cxd5 {[%clk 0:02:06]}  exd5 {[%clk 0:02:19]} 23. b5 {[%clk 0:02:06]}  Rxf1+ {[%clk 0:02:16]} 24. Bxf1 {[%clk 0:02:05]}  c5 {[%clk 0:01:45]} 25. Rxc5 {[%clk 0:02:04]}  Bf7 {[%clk 0:01:45]} 26. Qc3 {[%clk 0:02:01]}  Rf8 {[%clk 0:01:44]} 27. Rc7 {[%clk 0:01:53]}  Be8 {[%clk 0:01:31]} 28. Rxb7 {[%clk 0:01:49]}  Qf6 {[%clk 0:01:24]} 29. Qe1 {[%clk 0:01:49]}  h5 {[%clk 0:01:17]} 30. Rxa7 {[%clk 0:01:41]}  g4 {[%clk 0:01:15]} 31. b6 {[%clk 0:01:41]}  Qxb6 {[%clk 0:01:14]} 32. Ra6 {[%clk 0:01:28]}  Qb2 {[%clk 0:01:06]} 33. Ra7 {[%clk 0:01:07]}  Qb6 {[%clk 0:01:01]} 34. Ra3 {[%clk 0:00:52]}  Qb2 {[%clk 0:01:00]} 35. Ra8 {[%clk 0:00:48]}  Kh7 {[%clk 0:00:51]} 36. a4 {[%clk 0:00:46]}  Qb7 {[%clk 0:00:37]} 37. Rd8 {[%clk 0:00:37]}  Qe7 {[%clk 0:00:31]} 38. Rxd5 {[%clk 0:00:36]}  Bxa4 {[%clk 0:00:24]} 39. Rxh5+ {[%clk 0:00:35]} 1-0


[Site "https://www.chess.com"]

[Event "Titled Tuesday Blitz June 20 Early 2023"]
[White "Haug, Havard"]
[Black "Sovetbekova, Nurai"]
[WhiteFideId "1547887"]
[BlackFideId "13801910"]
[WhiteElo "2396"]
[BlackElo "1857"]
[Result "1-0"]
[Round "3"]
[TimeControl "180+2"]
[Date "2023.06.20"]
[WhiteClock "0:00:22"]
[BlackClock "0:00:00"]
[Board "180"]

1. e4 {[%clk 0:03:00]}  c5 {[%clk 0:02:59]} 2. c3 {[%clk 0:03:00]}  Nf6 {[%clk 0:02:59]} 3. e5 {[%clk 0:03:00]}  Nd5 {[%clk 0:03:00]} 4. Nf3 {[%clk 0:03:00]}  Nc6 {[%clk 0:02:59]} 5. Bc4 {[%clk 0:02:59]}  Nb6 {[%clk 0:02:58]} 6. Bb3 {[%clk 0:02:59]}  d5 {[%clk 0:02:56]} 7. exd6 {[%clk 0:02:58]}  Qxd6 {[%clk 0:02:55]} 8. O-O {[%clk 0:02:59]}  c4 {[%clk 0:02:53]} 9. Bc2 {[%clk 0:02:58]}  Bg4 {[%clk 0:02:53]} 10. h3 {[%clk 0:02:57]}  Bh5 {[%clk 0:02:53]} 11. b3 {[%clk 0:02:58]}  e6 {[%clk 0:02:46]} 12. Na3 {[%clk 0:02:56]}  cxb3 {[%clk 0:02:38]} 13. axb3 {[%clk 0:02:57]}  Be7 {[%clk 0:02:33]} 14. Re1 {[%clk 0:02:55]}  O-O {[%clk 0:02:33]} 15. d4 {[%clk 0:02:55]}  a6 {[%clk 0:02:04]} 16. Qe2 {[%clk 0:02:18]}  Rad8 {[%clk 0:01:57]} 17. Nc4 {[%clk 0:02:12]}  Nxc4 {[%clk 0:01:56]} 18. bxc4 {[%clk 0:02:13]}  Bf6 {[%clk 0:01:45]} 19. Rb1 {[%clk 0:02:04]}  Qc7 {[%clk 0:01:39]} 20. Ba3 {[%clk 0:01:58]}  Rfe8 {[%clk 0:01:37]} 21. Be4 {[%clk 0:01:57]}  Na5 {[%clk 0:01:21]} 22. c5 {[%clk 0:01:55]}  Nc6 {[%clk 0:01:09]} 23. Qb2 {[%clk 0:01:53]}  Rb8 {[%clk 0:01:07]} 24. Qb6 {[%clk 0:01:52]}  Qf4 {[%clk 0:00:58]} 25. Bxc6 {[%clk 0:01:48]}  bxc6 {[%clk 0:00:57]} 26. Qxc6 {[%clk 0:01:49]}  Rec8 {[%clk 0:00:53]} 27. Rxb8 {[%clk 0:01:44]}  Qxb8 {[%clk 0:00:51]} 28. Qxa6 {[%clk 0:01:39]}  Bxf3 {[%clk 0:00:50]} 29. gxf3 {[%clk 0:01:40]}  Rd8 {[%clk 0:00:35]} 30. Bb4 {[%clk 0:01:39]}  Qf4 {[%clk 0:00:35]} 31. Qe2 {[%clk 0:01:38]}  Qg5+ {[%clk 0:00:30]} 32. Kh1 {[%clk 0:01:37]}  Qh4 {[%clk 0:00:30]} 33. Qf1 {[%clk 0:01:32]}  Bg5 {[%clk 0:00:27]} 34. Qg2 {[%clk 0:01:31]}  Bf4 {[%clk 0:00:27]} 35. Rg1 {[%clk 0:01:17]}  g6 {[%clk 0:00:27]} 36. Qg4 {[%clk 0:01:17]}  Qh6 {[%clk 0:00:26]} 37. c6 {[%clk 0:01:16]}  Rc8 {[%clk 0:00:15]} 38. d5 {[%clk 0:01:13]}  f5 {[%clk 0:00:15]} 39. Qg2 {[%clk 0:01:12]}  exd5 {[%clk 0:00:15]} 40. Rd1 {[%clk 0:01:11]}  Rxc6 {[%clk 0:00:15]} 41. Rxd5 {[%clk 0:01:11]}  Re6 {[%clk 0:00:12]} 42. c4 {[%clk 0:01:01]}  Ra6 {[%clk 0:00:09]} 43. Rd8+ {[%clk 0:00:58]}  Kf7 {[%clk 0:00:08]} 44. Rd1 {[%clk 0:00:48]}  Ra4 {[%clk 0:00:08]} 45. Rb1 {[%clk 0:00:45]}  Ra2 {[%clk 0:00:05]} 46. Bc5 {[%clk 0:00:44]}  Rc2 {[%clk 0:00:04]} 47. Qf1 {[%clk 0:00:39]}  Qh4 {[%clk 0:00:04]} 48. Bd4 {[%clk 0:00:30]}  Kg8 {[%clk 0:00:02]} 49. c5 {[%clk 0:00:29]}  Qh5 {[%clk 0:00:02]} 50. Qg2 {[%clk 0:00:26]}  Bc7 {[%clk 0:00:00]} 51. f4 {[%clk 0:00:22]} 1-0


[Site "https://www.chess.com"]

[Event "Titled Tuesday Blitz June 20 Early 2023"]
[White "Buscar, Michael"]
[Black "Belov, Alexei"]
[WhiteFideId "2603616"]
[BlackFideId "4128206"]
[WhiteElo "2010"]
[BlackElo "2571"]
[Result "0-1"]
[Round "3"]
[TimeControl "180+2"]
[Date "2023.06.20"]
[WhiteClock "0:00:49"]
[BlackClock "0:01:06"]
[Board "182"]

1. d4 {[%clk 0:03:00]}  e6 {[%clk 0:03:00]} 2. c4 {[%clk 0:03:00]}  d5 {[%clk 0:03:00]} 3. Nc3 {[%clk 0:02:59]}  Be7 {[%clk 0:03:00]} 4. Nf3 {[%clk 0:02:58]}  Nf6 {[%clk 0:03:00]} 5. e3 {[%clk 0:02:58]}  O-O {[%clk 0:02:59]} 6. Bd3 {[%clk 0:02:56]}  Nbd7 {[%clk 0:02:57]} 7. O-O {[%clk 0:02:56]}  dxc4 {[%clk 0:02:57]} 8. Bxc4 {[%clk 0:02:56]}  a6 {[%clk 0:02:58]} 9. Be2 {[%clk 0:02:55]}  b5 {[%clk 0:02:55]} 10. b3 {[%clk 0:02:51]}  Bb7 {[%clk 0:02:54]} 11. Bb2 {[%clk 0:02:51]}  c5 {[%clk 0:02:54]} 12. dxc5 {[%clk 0:02:49]}  Nxc5 {[%clk 0:02:54]} 13. Rc1 {[%clk 0:02:45]}  Qb6 {[%clk 0:02:48]} 14. Qc2 {[%clk 0:02:44]}  Rac8 {[%clk 0:02:45]} 15. Qb1 {[%clk 0:02:43]}  Nce4 {[%clk 0:02:41]} 16. Nxe4 {[%clk 0:02:39]}  Nxe4 {[%clk 0:02:30]} 17. Bd3 {[%clk 0:02:31]}  f5 {[%clk 0:02:27]} 18. Ne5 {[%clk 0:02:24]}  Rxc1 {[%clk 0:01:59]} 19. Rxc1 {[%clk 0:02:17]}  Rd8 {[%clk 0:01:59]} 20. Bd4 {[%clk 0:02:13]}  Qd6 {[%clk 0:01:50]} 21. Qc2 {[%clk 0:01:57]}  Bf6 {[%clk 0:01:44]} 22. Qc7 {[%clk 0:01:07]}  Bxe5 {[%clk 0:01:13]} 23. Qxb7 {[%clk 0:01:04]}  Bxd4 {[%clk 0:01:13]} 24. Bxe4 {[%clk 0:00:49]}  Bb2 {[%clk 0:01:06]} 0-1


[Site "https://www.chess.com"]